fUSD/lending_fUSD_20260401
["ID","MTS","AMOUNT","RATE_DAILY","PERIOD"]
[419248009,1775046648144,-1000.0,0.00015872,2]
[419248010,1775046648154,-1000.0,0.00015878,2]
[419248011,1775046648165,-233.93350936,0.00015883,2]
[419248012,1775046648176,-150.0,0.00015884,2]
[419248013,1775046648188,-2000.0,0.0001589,2]
[419248014,1775046648199,-2500.0,0.0001589,2]
[419248015,1775046648210,-453.65,0.00015895,2]
[419248016,1775046648221,-500.0,0.00015899,2]
[419248017,1775046648232,-302.0,0.000159,2]
[419248018,1775046648243,-1000.0,0.000159,2]
[419248019,1775046648253,-150.0,0.000159,2]
[419248020,1775046648264,-1316.83151931,0.000159,2]
[419248021,1775046648275,-732.9543691,0.000159,2]
[419248022,1775046648285,-150.0,0.000159,2]
[419248023,1775046648296,-173.3840015,0.000159,2]
[419248024,1775046648307,-18304.4458893,0.000159,2]
[419248025,1775046648318,-6266.32810743,0.000159,2]
[419248026,1775046648330,-9712.05142204,0.000159,2]
[419248027,1775046648340,-150.0,0.00015904,2]
[419248028,1775046648352,-396.36204594,0.00015905,2]
[419248029,1775046648362,-1000.0,0.00015907,2]
[419248030,1775046648373,-1000.0,0.00015907,2]
[419248031,1775046648383,-151.0,0.00015907,2]
[419248032,1775046648394,-151.0,0.00015907,2]
[419248033,1775046648405,-151.0,0.00015907,2]
[419248034,1775046648416,-297.340412,0.00015907,2]
[419248035,1775046648427,-323.489604,0.00015907,2]
[419248036,1775046648438,-323.489604,0.00015907,2]
[419248037,1775046648449,-323.489604,0.00015907,2]
[419248038,1775046648460,-323.489604,0.00015907,2]
[419248039,1775046648471,-1000.0,0.00015914,2]
[419248040,1775046648481,-289.52458,0.00015914,2]
[419248041,1775046648491,-289.52458,0.00015914,2]
[419248042,1775046648502,-151.0,0.00015914,2]
[419248043,1775046648513,-289.52458,0.00015914,2]
[419248044,1775046648523,-151.0,0.00015914,2]
[419248045,1775046648534,-289.52458,0.00015914,2]
[419248046,1775046648544,-150.0,0.00015924,2]
[419248047,1775046648555,-190.80446469,0.00015925,2]
[419248048,1775046648565,-150.0,0.0001595,2]
[419248049,1775046648577,-500.0,0.00015992,2]
[419248050,1775046648587,-151.0,0.00015997,2]
[419248051,1775046648597,-666.0,0.00015999,2]
[419248052,1775046648607,-500.0,0.00015999,2]
[419248053,1775046648618,-495.45411692,0.00015999,2]
[419248054,1775046648628,-298.14050904,0.00015999,2]
[419248055,1775046648639,-500.0,0.00015999,2]
[419248056,1775046648649,-500.0,0.00015999,2]
[419248057,1775046648659,-500.0,0.00015999,2]
[419248058,1775046648669,-500.0,0.00015999,12]
[419248059,1775046648680,-149564.21108266,0.00016,2]
[419248060,1775046648695,-706.01949435,0.00016,2]
[419248061,1775046648713,-301.94822104,0.00015453,2]
[419248062,1775046648724,-3173.05177896,0.00016,2]
[419248075,1775047528996,169.33,5.346e-05,2]
[419248076,1775047529202,169.33,8.019e-05,2]
[419248080,1775047832408,-250.0,0.00010638,2]
[419248081,1775047832418,-216.53590046,0.00010651,2]
[419248082,1775047832431,-283.46409954,0.00010651,2]
[419248083,1775047832441,-129.31318115,0.00010687,2]
[419248090,1775047832812,-120.68681885,0.00010687,2]
[419248091,1775047832823,-169.33,0.00010692,2]
[419248092,1775047832833,-319.61,0.00010707,2]
[419248093,1775047832843,-1231.89,0.00010814,2]
[419248094,1775047832854,-1317.0,0.000112,5]
[419248095,1775047832863,-1200.0,0.00011342,2]
[419248096,1775047832876,-2135.75013405,0.00011343,2]
[419248097,1775047832889,-309.88642084,0.00011343,2]
[419248098,1775047833039,-778.30235021,0.00011343,2]
[419248099,1775047833078,-414.1015017,0.00011343,2]
[419248100,1775047833090,-585.39195199,0.00011343,2]
[419248101,1775047833102,-387.105,0.00011343,2]
[419248102,1775047833113,-1615.14536651,0.00011343,2]
[419248107,1775047838381,-1976.09516634,0.00011343,2]
[419248108,1775047838393,-750.26223229,0.00011343,2]
[419248109,1775047838470,-569.50987607,0.00011343,2]
[419248110,1775047838481,-150.0,0.000115,2]
[419248111,1775047838491,-4265.27,0.00011507,2]
[419248112,1775047838500,-7985.12812393,0.0001153,2]
[419248113,1775047838511,-1386.35636678,0.0001153,2]
[419248114,1775047838522,-1807.85877248,0.0001153,2]
[419248115,1775047838532,-1257.68700571,0.0001153,2]
[419248116,1775047838548,-2892.26829417,0.0001153,2]
[419248117,1775047838558,-528.83767634,0.0001153,2]
[419248118,1775047838569,-8397.87097282,0.0001153,2]
[419248119,1775047838581,-529.97450802,0.0001155,2]
[419248120,1775047838590,-195.0,0.0001155,2]
[419248121,1775047838601,-195.0,0.0001155,2]
[419248122,1775047838611,-5000.0,0.0001155,2]
[419248123,1775047838621,-300.0,0.0001155,2]
[419248124,1775047838632,-301.88355522,0.0001155,2]
[419248125,1775047838642,-339.42,0.00011553,2]
[419248126,1775047838654,-500.0,0.00011573,2]
[419248127,1775047838664,-500.0,0.00011573,2]
[419248128,1775047838675,-500.0,0.00011588,2]
[419248129,1775047838686,-200.0,0.00011588,2]
[419248130,1775047838695,-500.0,0.00011588,2]
[419248131,1775047838705,-500.0,0.00011588,2]
[419248132,1775047838715,-500.0,0.00011588,2]
[419248133,1775047838724,-500.0,0.00011588,2]
[419248134,1775047838734,-500.0,0.00011588,2]
[419248136,1775047838744,-500.0,0.00011588,2]
[419248138,1775047838753,-500.0,0.00011588,2]
[419248139,1775047838766,-500.0,0.00011588,2]
[419248141,1775047838775,-500.0,0.00011588,2]
[419248143,1775047838787,-500.0,0.00011588,2]
[419248146,1775047838802,-500.0,0.00011588,2]
[419248148,1775047838813,-500.0,0.00011588,2]
[419248149,1775047838824,-500.0,0.00011588,2]
[419248151,1775047838833,-500.0,0.00011588,2]
[419248153,1775047838843,-28.45732635,0.00011588,2]
[419248157,1775047838874,-471.54267365,0.00011588,2]
[419248159,1775047838885,-500.0,0.00011588,2]
[419248161,1775047838896,-500.0,0.00011588,2]
[419248162,1775047838913,-500.0,0.00011588,2]
[419248164,1775047838924,-26.91580054,0.00011588,2]
[419248167,1775047838937,-473.08419946,0.00011588,2]
[419248170,1775047838947,-500.0,0.00011588,2]
[419248173,1775047838957,-224.6973093,0.00011588,2]
[419248235,1775047841177,-275.3026907,0.00011588,2]
[419248236,1775047841186,-272.68382253,0.00011588,2]
[419248237,1775047841233,-227.31617747,0.00011588,2]
[419248238,1775047841242,-500.0,0.00011588,2]
[419248239,1775047841253,-500.0,0.00011588,2]
[419248240,1775047841264,-151.0,0.00011588,2]
[419248241,1775047841273,-151.0,0.00011588,2]
[419248242,1775047841283,-151.0,0.00011588,2]
[419248243,1775047841292,-151.0,0.00011588,2]
[419248244,1775047841301,-151.0,0.00011588,2]
[419248245,1775047841311,-151.0,0.00011588,2]
[419248246,1775047841320,-151.0,0.00011588,2]
[419248247,1775047841331,-151.0,0.00011588,2]
[419248248,1775047841340,-151.0,0.00011588,2]
[419248249,1775047841349,-151.0,0.00011588,2]
[419248250,1775047841359,-151.0,0.00011588,2]
[419248251,1775047841369,-151.0,0.00011588,2]
[419248252,1775047841378,-151.0,0.00011588,2]
[419248253,1775047841387,-151.0,0.00011592,2]
[419248254,1775047841397,-1882.72808932,0.00011594,2]
[419248256,1775047841406,-1000.0,0.0001163,2]
[419248258,1775047841415,-1338.06962489,0.00011673,2]
[419248259,1775047841424,-193.0,0.00011688,2]
[419248260,1775047841434,-600.0,0.00011688,2]
[419248261,1775047841443,-600.0,0.00011688,2]
[419248262,1775047841452,-600.0,0.00011688,2]
[419248264,1775047841462,-600.0,0.00011688,2]
[419248266,1775047841472,-195.0,0.00011688,2]
[419248267,1775047841481,-195.0,0.00011688,2]
[419248268,1775047841490,-275.10365692,0.00011688,2]
[419248269,1775047841501,-600.0,0.00011688,2]
[419248270,1775047841510,-250.0,0.00011688,2]
[419248271,1775047841519,-151.0,0.00011727,2]
[419248272,1775047841529,-151.0,0.00011727,2]
[419248273,1775047841538,-151.0,0.00011727,2]
[419248274,1775047841547,-151.0,0.00011727,2]
[419248275,1775047841556,-151.0,0.00011727,2]
[419248276,1775047841569,-151.0,0.00011727,2]
[419248277,1775047841578,-2000.0,0.00011728,2]
[419248278,1775047841587,-500.0,0.00011729,2]
[419248279,1775047841597,-500.0,0.00011729,3]
[419248280,1775047841607,-500.0,0.00011729,4]
[419248281,1775047841616,-235.20456477,0.00011773,2]
[419248282,1775047841626,-151.0,0.00011791,2]
[419248283,1775047841635,-151.0,0.00011793,2]
[419248284,1775047841644,-500.0,0.00011829,5]
[419248285,1775047841653,-500.0,0.00011929,6]
[419248286,1775047841663,-15329.29856303,0.00012016,2]
[419248288,1775047841672,-502.43638896,0.00012121,2]
[419248290,1775047841681,-502.53265423,0.00012121,2]
[419248291,1775047841690,-200.0,0.00012136,2]
[419248292,1775047841699,-8926.70864914,0.00012154,2]
[419248293,1775047841708,-500.0,0.00012162,2]
[419248294,1775047841718,-500.0,0.00012162,2]
[419248295,1775047841727,-500.0,0.00012162,2]
[419248296,1775047841736,-169.57542757,0.00012319,2]
[419248297,1775047841746,-196.78644426,0.00012319,2]
[419248298,1775047841756,-570.69047235,0.00012319,2]
[419248299,1775047841766,-153.7833768,0.00012319,2]
[419248300,1775047841775,-1680.0,0.00012477,2]
[419248301,1775047841785,-500.0,0.000125,7]
[419248302,1775047841794,-15329.29856303,0.00012501,2]
[419248303,1775047841804,-502.60496066,0.0001271,2]
[419248304,1775047841814,-501.63683479,0.0001271,2]
[419248305,1775047841823,-500.0,0.0001271,2]
[419248306,1775047841833,-220.09,0.0001275,30]
[419248307,1775047841843,-960.70873178,0.00012779,2]
[419248308,1775047841870,-544.2039824,0.00012779,2]
[419248309,1775047841883,-500.0,0.00012779,2]
[419248310,1775047841900,-6921.79593496,0.00012779,2]
[419248311,1775047841910,-192.2283,0.000128,7]
[419248312,1775047841920,-15329.29856303,0.00012987,2]
[419248313,1775047841930,-505.0,0.00013111,2]
[419248314,1775047841940,-2000.0,0.00013194,2]
[419248315,1775047841949,-8926.70864914,0.00013403,2]
[419248316,1775047841959,-15329.29856303,0.00013472,2]
[419248317,1775047841969,-440.17,0.00013528,30]
[419248318,1775047841978,-500.0,0.00013698,2]
[419248319,1775047841988,-209.19964138,0.00013698,2]
[419248320,1775047841998,-496.70449516,0.00013698,2]
[419248321,1775047842007,-500.0,0.00013698,2]
[419248322,1775047842017,-500.0,0.00013698,2]
[419248323,1775047842028,-500.0,0.00013698,2]
[419248324,1775047842036,-500.0,0.00013698,2]
[419248325,1775047842047,-500.0,0.00013698,2]
[419248326,1775047842057,-500.0,0.00013698,2]
[419248327,1775047842067,-500.0,0.00013698,2]
[419248328,1775047842078,-500.0,0.00013698,2]
[419248329,1775047842088,-500.0,0.00013698,2]
[419248330,1775047842099,-500.0,0.00013698,2]
[419248331,1775047842108,-500.0,0.00013698,2]
[419248332,1775047842117,-500.0,0.00013698,2]
[419248333,1775047842127,-1882.94,0.00013699,2]
[419248334,1775047842136,-166.66,0.00013699,2]
[419248335,1775047842147,-200.0,0.00013699,5]
[419248336,1775047842157,-200.0,0.00013699,5]
[419248337,1775047842167,-200.0,0.00013699,5]
[419248338,1775047842177,-200.0,0.00013699,5]
[419248339,1775047842187,-200.0,0.00013699,5]
[419248340,1775047842198,-200.0,0.00013699,5]
[419248341,1775047842209,-200.0,0.00013699,5]
[419248342,1775047842219,-200.0,0.00013699,5]
[419248343,1775047842228,-200.0,0.00013699,5]
[419248344,1775047842238,-200.0,0.00013699,5]
[419248345,1775047842248,-200.0,0.00013699,5]
[419248346,1775047842257,-200.0,0.00013699,5]
[419248347,1775047842267,-200.0,0.00013699,5]
[419248348,1775047842276,-200.0,0.00013699,5]
[419248349,1775047842286,-200.0,0.00013699,5]
[419248350,1775047842295,-200.0,0.00013699,5]
[419248351,1775047842304,-200.0,0.00013699,5]
[419248352,1775047842314,-200.0,0.00013699,5]
[419248353,1775047842325,-200.0,0.00013699,5]
[419248354,1775047842335,-200.0,0.00013699,5]
[419248355,1775047842346,-200.0,0.00013699,5]
[419248356,1775047842356,-200.0,0.00013699,5]
[419248357,1775047842366,-200.0,0.00013699,5]
[419248358,1775047842375,-200.0,0.00013699,5]
[419248359,1775047842385,-200.0,0.00013699,5]
[419248360,1775047842395,-200.0,0.00013699,5]
[419248361,1775047842403,-200.0,0.00013699,5]
[419248362,1775047842413,-200.0,0.00013699,5]
[419248363,1775047842423,-200.0,0.00013699,5]
[419248364,1775047842433,-204.465702,0.00013699,5]
[419248365,1775047842443,-170.02679605,0.00013699,2]
[419248366,1775047842452,-358.49657185,0.000137,2]
[419248367,1775047842461,-500.0,0.000137,2]
[419248368,1775047842470,-500.0,0.000137,2]
[419248369,1775047842479,-500.0,0.000137,2]
[419248370,1775047842488,-500.0,0.000137,2]
[419248371,1775047842498,-882.0,0.00013724,2]
[419248372,1775047842507,-500.0,0.000138,2]
[419248373,1775047842516,-500.0,0.000138,2]
[419248374,1775047842525,-500.0,0.000138,2]
[419248375,1775047842535,-264.52314394,0.000138,2]
[419248376,1775047842544,-166.66,0.00013836,2]
[419248377,1775047842553,-15329.29856303,0.00013958,2]
[419248378,1775047842562,-166.66,0.00013973,2]
[419248379,1775047842571,-8926.70864914,0.00014027,2]
[419248380,1775047842580,-250.0,0.0001404,2]
[419248381,1775047842589,-246.3449,0.000141,12]
[419248382,1775047842598,-166.66,0.0001411,2]
[419248383,1775047842608,-166.66,0.00014247,2]
[419248384,1775047842617,-1000.0,0.00014248,2]
[419248385,1775047842627,-500.0,0.00014248,2]
[419248386,1775047842636,-500.0,0.00014248,2]
[419248387,1775047842646,-660.26,0.00014306,30]
[419248388,1775047842656,-500.0,0.00014327,2]
[419248389,1775047842666,-152.5578191,0.00014327,2]
[419248390,1775047842676,-1000.0,0.00014348,2]
[419248391,1775047842686,-500.0,0.00014348,2]
[419248392,1775047842697,-1852.42,0.00014363,2]
[419248393,1775047842707,-500.37557038,0.00014375,2]
[419248394,1775047842717,-1882.94,0.00014384,2]
[419248395,1775047842728,-166.66,0.00014384,2]
[419248396,1775047842738,-15329.29856303,0.00014443,2]
[419248397,1775047842751,-2000.0,0.000145,2]
[419248398,1775047842760,-500.0,0.00014531,8]
[419248399,1775047842769,-500.0,0.00014531,9]
[419248400,1775047842778,-500.0,0.00014531,10]
[419248401,1775047842787,-500.0,0.00014531,11]
[419248402,1775047842796,-500.0,0.00014531,12]
[419248403,1775047842805,-500.0,0.00014531,2]
[419248404,1775047842814,-500.0,0.00014531,2]
[419248405,1775047842823,-500.0,0.00014531,2]
[419248406,1775047842832,-559.62575171,0.00014531,2]
[419248407,1775047842841,-500.0,0.00014531,2]
[419248408,1775047842850,-500.0,0.00014531,2]
[419248409,1775047842859,-500.0,0.00014531,2]
[419248410,1775047842869,-1338.06962489,0.00014544,2]
[419248411,1775047842878,-281.052766,0.00014615,2]
[419248412,1775047842887,-218.028813,0.00014615,2]
[419248413,1775047842896,-199.038658,0.00014615,7]
[419248414,1775047842905,-169.121654,0.00014615,7]
[419248415,1775047842914,-160.0,0.0001463,7]
[419248416,1775047842923,-359.482988,0.0001463,7]
[419248417,1775047842932,-558.965976,0.0001463,7]
[419248418,1775047842941,-160.0,0.0001463,7]
[419248419,1775047842951,-206.549549,0.0001463,7]
[419248420,1775047842960,-253.099099,0.0001463,7]
[419248421,1775047842969,-8926.70864914,0.00014651,2]
[419248422,1775047842978,-2000.0,0.0001466,2]
[419248423,1775047842987,-205.96901606,0.00014668,2]
[419248424,1775047842996,-358.30266083,0.00014668,2]
[419248425,1775047843006,-500.0,0.00014668,2]
[419248426,1775047843016,-500.0,0.00014668,2]
[419248427,1775047843025,-639.59658678,0.00014668,2]
[419248428,1775047843034,-500.0,0.00014668,2]
[419248429,1775047843044,-500.0,0.00014668,2]
[419248430,1775047843054,-500.0,0.00014668,2]
[419248431,1775047843064,-500.0,0.00014668,2]
[419248432,1775047843074,-500.0,0.00014668,2]
[419248433,1775047843084,-218.51346411,0.00014668,2]
[419248434,1775047843093,-500.0,0.00014668,2]
[419248435,1775047843103,-474.26628968,0.00014668,2]
[419248436,1775047843112,-500.0,0.00014668,2]
[419248437,1775047843122,-469.513693,0.00014669,7]
[419248438,1775047843131,-779.027387,0.00014669,7]
[419248440,1775047843141,-161.989272,0.00014669,7]
[419248441,1775047843150,-312.57026801,0.00014723,2]
[419248442,1775047843160,-500.0,0.00014723,2]
[419248443,1775047843170,-500.0,0.00014723,2]
[419248444,1775047843179,-500.0,0.00014723,2]
[419248445,1775047843188,-342.86927072,0.00014723,2]
[419248447,1775047843198,-1500.0,0.00014796,2]
[419248448,1775047843207,-785.2,0.00014818,2]
[419248449,1775047843215,-177.16,0.00014848,2]
[419248450,1775047843225,-174.61919141,0.00014858,2]
[419248451,1775047843234,-9211.34798985,0.00014858,2]
[419248452,1775047843244,-500.0,0.00014858,2]
[419248453,1775047843255,-500.0,0.00014858,2]
[419248454,1775047843264,-500.0,0.00014858,2]
[419248455,1775047843273,-500.0,0.00014858,2]
[419248456,1775047843283,-200.0,0.00014858,2]
[419248457,1775047843292,-500.0,0.00014858,2]
[419248458,1775047843301,-578.20924308,0.00014858,2]
[419248459,1775047843311,-500.0,0.00014858,2]
[419248460,1775047843320,-500.0,0.00014858,2]
[419248461,1775047843329,-500.0,0.00014858,2]
[419248462,1775047843339,-500.0,0.00014858,2]
[419248463,1775047843348,-500.0,0.00014858,2]
[419248464,1775047843358,-500.0,0.00014858,2]
[419248465,1775047843368,-500.0,0.00014858,2]
[419248466,1775047843377,-500.0,0.00014858,2]
[419248467,1775047843386,-500.0,0.00014858,2]
[419248468,1775047843396,-201.93286099,0.00014858,2]
[419248469,1775047843405,-500.0,0.00014858,2]
[419248470,1775047843415,-500.0,0.00014858,2]
[419248471,1775047843424,-500.0,0.00014858,2]
[419248472,1775047843434,-500.0,0.00014858,2]
[419248473,1775047843444,-151.0,0.00014858,2]
[419248474,1775047843455,-500.0,0.00014858,2]
[419248475,1775047843464,-500.0,0.00014858,2]
[419248476,1775047843474,-500.0,0.00014858,2]
[419248477,1775047843484,-500.0,0.00014858,2]
[419248478,1775047843494,-500.0,0.00014858,2]
[419248479,1775047843505,-500.0,0.00014858,2]
[419248481,1775047843514,-500.0,0.00014858,2]
[419248484,1775047843524,-500.0,0.00014858,2]
[419248486,1775047843533,-500.0,0.00014858,2]
[419248488,1775047843543,-500.0,0.00014858,2]
[419248490,1775047843553,-500.0,0.00014858,2]
[419248491,1775047843562,-500.0,0.00014858,2]
[419248492,1775047843572,-500.0,0.00014858,2]
[419248493,1775047843581,-500.0,0.00014858,2]
[419248494,1775047843592,-500.0,0.00014858,2]
[419248495,1775047843601,-500.0,0.00014858,2]
[419248496,1775047843612,-500.0,0.00014858,2]
[419248497,1775047843621,-500.0,0.00014858,2]
[419248498,1775047843631,-500.0,0.00014858,2]
[419248499,1775047843640,-200.0,0.00014858,2]
[419248500,1775047843649,-1377.42282659,0.00014858,2]
[419248501,1775047843659,-500.0,0.00014858,2]
[419248502,1775047843668,-500.0,0.00014858,2]
[419248503,1775047843678,-500.0,0.00014858,2]
[419248504,1775047843962,-250.0,0.00014858,2]
[419248505,1775047843972,-500.0,0.00014858,2]
[419248506,1775047843982,-250.0,0.00014858,2]
[419248507,1775047843992,-500.0,0.00014858,2]
[419248508,1775047844003,-250.0,0.00014858,2]
[419248509,1775047844013,-250.0,0.00014858,2]
[419248510,1775047844023,-250.0,0.00014858,2]
[419248511,1775047844033,-250.0,0.00014858,2]
[419248512,1775047844043,-250.0,0.00014858,2]
[419248513,1775047844052,-250.0,0.00014858,2]
[419248514,1775047844062,-250.0,0.00014858,2]
[419248515,1775047844071,-250.0,0.00014858,2]
[419248516,1775047844081,-250.0,0.00014858,2]
[419248517,1775047844090,-250.0,0.00014858,2]
[419248518,1775047844099,-262.90206542,0.00014858,2]
[419248519,1775047844109,-743.50770149,0.00014858,2]
[419248520,1775047844119,-279.9045709,0.00014858,2]
[419248521,1775047844129,-160.0,0.00014889,2]
[419248522,1775047844139,-160.0,0.00014889,2]
[419248524,1775047844149,-160.0,0.00014889,2]
[419248526,1775047844160,-751.59464626,0.00014896,2]
[419248527,1775047844170,-9552.16786547,0.00014913,2]
[419248528,1775047844180,-151.0,0.00014913,2]
[419248529,1775047844189,-500.0,0.00014913,2]
[419248530,1775047844198,-272.62944185,0.00014913,2]
[419248532,1775047844207,-15329.29856303,0.00014929,2]
[419248533,1775047844216,-9905.5980765,0.00014968,2]
[419248534,1775047844226,-151.0,0.00014968,2]
[419248535,1775047844235,-500.0,0.00014968,2]
[419248536,1775047844243,-282.71673119,0.00014968,2]
[419248537,1775047844254,-160.0,0.00015,2]
[419248538,1775047844263,-10272.10520533,0.00015023,2]
[419248539,1775047844272,-151.0,0.00015023,2]
[419248540,1775047844281,-500.0,0.00015023,2]
[419248541,1775047844291,-293.17725025,0.00015023,2]
[419248542,1775047844300,-1882.94,0.00015068,2]
[419248543,1775047844309,-10652.17309792,0.00015078,2]
[419248544,1775047844318,-151.0,0.00015078,2]
[419248545,1775047844328,-500.0,0.00015078,2]
[419248546,1775047844337,-304.02480851,0.00015078,2]
[419248547,1775047844346,-880.34,0.00015084,30]
[419248548,1775047844355,-785.2,0.00015092,2]
[419248549,1775047844365,-11046.30350255,0.00015133,2]
[419248550,1775047844374,-151.0,0.00015133,2]
[419248551,1775047844383,-500.0,0.00015133,2]
[419248552,1775047844393,-315.27372642,0.00015133,2]
[419248553,1775047844402,-151.0,0.00015188,2]
[419248554,1775047844411,-500.0,0.00015188,2]
[419248555,1775047844421,-326.9388543,0.00015188,2]
[419248556,1775047844430,-10000.0,0.00015205,2]
[419248557,1775047844439,-151.0,0.00015243,2]
[419248558,1775047844448,-500.0,0.00015243,2]
[419248559,1775047844457,-339.03559191,0.00015243,2]
[419248560,1775047844467,-385.01546093,0.0001526,2]
[419248561,1775047844476,-298.21038318,0.00015271,2]
[419248562,1775047844487,-1000.0,0.00015271,2]
[419248563,1775047844497,-8926.70864914,0.00015276,2]
[419248564,1775047844506,-151.0,0.00015298,2]
[419248565,1775047844516,-500.0,0.00015298,2]
[419248566,1775047844528,-2000.0,0.00015344,2]
[419248567,1775047844537,-151.0,0.00015344,2]
[419248568,1775047844546,-151.0,0.00015344,2]
[419248569,1775047844556,-151.0,0.00015344,2]
[419248570,1775047844565,-251.335443,0.00015344,2]
[419248571,1775047844575,-151.0,0.00015353,2]
[419248572,1775047844585,-500.0,0.00015353,2]
[419248573,1775047844595,-490.204074,0.00015362,7]
[419248574,1775047844605,-281.658476,0.00015362,7]
[419248575,1775047844614,-206.04,0.00015366,2]
[419248576,1775047844624,-315.6965,0.000154,17]
[419248577,1775047844637,-2000.0,0.000154,2]
[419248578,1775047844648,-156.0,0.000154,2]
[419248579,1775047844659,-640.245946,0.00015402,7]
[419248580,1775047844668,-181.08010149,0.00015406,2]
[419248581,1775047844677,-200.0,0.00015406,2]
[419248582,1775047844687,-209.40437684,0.00015406,2]
[419248583,1775047844696,-200.0,0.00015406,2]
[419248584,1775047844705,-1428.38747117,0.00015406,2]
[419248585,1775047844715,-771.01748645,0.00015406,2]
[419248586,1775047844724,-290.26104003,0.00015406,2]
[419248587,1775047844733,-151.0,0.00015408,2]
[419248588,1775047844742,-500.0,0.00015408,2]
[419248589,1775047844752,-15329.29856303,0.00015414,2]
[419248590,1775047844761,-270.664937,0.00015415,2]
[419248591,1775047844770,-270.664937,0.00015415,2]
[419248592,1775047844779,-270.664937,0.00015415,2]
[419248593,1775047844789,-160.91925734,0.00015436,2]
[419248594,1775047844798,-151.0,0.00015463,2]
[419248595,1775047844808,-500.0,0.00015463,2]
[419248596,1775047844817,-9340.04,0.00015471,2]
[419248597,1775047844827,-597.35,0.00015471,2]
[419248598,1775047844838,-7702.82,0.00015471,2]
[419248599,1775047844848,-206.0,0.00015477,2]
[419248600,1775047844859,-285.76667139,0.00015492,2]
[419248601,1775047844869,-944.0,0.00015541,5]
[419248602,1775047844879,-749.0,0.00015541,5]
[419248603,1775047844888,-206.0,0.0001556,2]
[419248604,1775047844897,-2000.0,0.000156,2]
[419248605,1775047844906,-500.0,0.00015613,2]
[419248606,1775047844915,-500.0,0.00015613,2]
[419248607,1775047844924,-500.0,0.00015613,2]
[419248608,1775047844933,-500.0,0.00015613,2]
[419248609,1775047844942,-500.0,0.00015613,2]
[419248610,1775047844952,-500.0,0.00015613,2]
[419248611,1775047844960,-500.0,0.00015613,2]
[419248612,1775047844970,-500.0,0.00015613,2]
[419248613,1775047844979,-500.0,0.00015613,2]
[419248614,1775047844988,-500.0,0.00015613,2]
[419248615,1775047844997,-608.87103939,0.00015613,2]
[419248616,1775047845006,-500.0,0.00015613,2]
[419248617,1775047845015,-150.0,0.00015613,2]
[419248618,1775047845024,-500.0,0.00015613,2]
[419248619,1775047845033,-500.0,0.00015613,2]
[419248620,1775047845044,-500.0,0.00015613,2]
[419248621,1775047845053,-500.0,0.00015613,2]
[419248622,1775047845062,-500.0,0.00015613,2]
[419248623,1775047845071,-150.0,0.00015613,2]
[419248624,1775047845081,-367.08167146,0.00015613,2]
[419248625,1775047845090,-152.20138541,0.00015613,2]
[419248626,1775047845100,-500.0,0.00015616,2]
[419248627,1775047845109,-156.78867168,0.00015616,2]
[419248628,1775047845119,-500.0,0.00015616,2]
[419248629,1775047845128,-330.83967565,0.00015616,2]
[419248630,1775047845137,-500.0,0.00015616,2]
[419248631,1775047845147,-500.0,0.00015616,2]
[419248632,1775047845156,-520.28767977,0.00015616,2]